[Event "*** Titled Tuesday Blitz"]
[Site "Chess.com"]
[Date "2020.12.01"]
[Round "6"]
[White "MF1966Idrisov"]
[Black "glebus008"]
[Result "1-0"]
[WhiteElo "2381"]
[BlackElo "2236"]
[TimeControl "180+1"]
[EndTime "11:05:31 PST"]
[Termination "MF1966Idrisov won on time"]

1. Nf3 {[%clk 0:03:00.9]} 1... d5 {[%clk 0:02:58.5]} 2. b3 {[%clk 0:03:01]} 2...
Nf6 {[%clk 0:02:56.5]} 3. Bb2 {[%clk 0:03:01.4]} 3... c5 {[%clk 0:02:54.8]} 4.
e3 {[%clk 0:03:01.7]} 4... a6 {[%clk 0:02:54.9]} 5. d4 {[%clk 0:03:02.2]} 5...
e6 {[%clk 0:02:48.4]} 6. Bd3 {[%clk 0:03:01.7]} 6... Nc6 {[%clk 0:02:44.7]} 7.
O-O {[%clk 0:03:01.5]} 7... Bd6 {[%clk 0:02:43.2]} 8. Nbd2 {[%clk 0:03:01.5]}
8... O-O {[%clk 0:02:41.9]} 9. Ne5 {[%clk 0:03:00.9]} 9... Nb4 {[%clk
0:02:33.3]} 10. Be2 {[%clk 0:03:00.3]} 10... Qc7 {[%clk 0:02:18.3]} 11. a3
{[%clk 0:02:38.6]} 11... cxd4 {[%clk 0:02:14.8]} 12. exd4 {[%clk 0:02:37.9]}
12... Nc6 {[%clk 0:02:03.7]} 13. f4 {[%clk 0:02:36.1]} 13... Ne4 {[%clk
0:02:03.4]} 14. Nxe4 {[%clk 0:02:22.5]} 14... dxe4 {[%clk 0:02:03]} 15. c4
{[%clk 0:02:07.4]} 15... f6 {[%clk 0:01:52.9]} 16. Nxc6 {[%clk 0:02:07.2]} 16...
Qxc6 {[%clk 0:01:49.7]} 17. Qd2 {[%clk 0:02:05]} 17... b6 {[%clk 0:01:36.4]} 18.
b4 {[%clk 0:02:03.8]} 18... Bb7 {[%clk 0:01:34.5]} 19. Qe3 {[%clk 0:01:53.3]}
19... b5 {[%clk 0:01:21.5]} 20. c5 {[%clk 0:01:41.3]} 20... Be7 {[%clk
0:01:21.4]} 21. f5 {[%clk 0:01:41.4]} 21... exf5 {[%clk 0:01:14.6]} 22. Rxf5
{[%clk 0:01:40.3]} 22... Rad8 {[%clk 0:01:14.2]} 23. Bf1 {[%clk 0:01:20.2]}
23... Qe6 {[%clk 0:01:13.9]} 24. Rf2 {[%clk 0:01:08.6]} 24... Bd5 {[%clk
0:01:13.5]} 25. a4 {[%clk 0:01:08.1]} 25... Rb8 {[%clk 0:01:05.5]} 26. axb5
{[%clk 0:01:07.5]} 26... axb5 {[%clk 0:01:04.8]} 27. Ra5 {[%clk 0:01:06.9]}
27... Qd7 {[%clk 0:00:58.5]} 28. Qe2 {[%clk 0:01:02]} 28... Bc6 {[%clk
0:00:45.4]} 29. Bc3 {[%clk 0:00:41.2]} 29... f5 {[%clk 0:00:44.8]} 30. Qa2+
{[%clk 0:00:38.5]} 30... Kh8 {[%clk 0:00:38.6]} 31. Ra7 {[%clk 0:00:37.5]} 31...
Rb7 {[%clk 0:00:38.3]} 32. Rxb7 {[%clk 0:00:36.3]} 32... Qxb7 {[%clk 0:00:38.4]}
33. g3 {[%clk 0:00:31.5]} 33... Bf6 {[%clk 0:00:30.5]} 34. Qe6 {[%clk
0:00:26.7]} 34... g6 {[%clk 0:00:25.5]} 35. d5 {[%clk 0:00:24.1]} 35... Bxc3
{[%clk 0:00:20.1]} 36. dxc6 {[%clk 0:00:23.7]} 36... Qg7 {[%clk 0:00:19]} 37.
Rc2 {[%clk 0:00:20.9]} 37... Bxb4 {[%clk 0:00:14]} 38. c7 {[%clk 0:00:19.9]}
38... Qxc7 {[%clk 0:00:08.8]} 39. c6 {[%clk 0:00:18.2]} 39... Be1 {[%clk
0:00:04.7]} 40. Bxb5 {[%clk 0:00:17.1]} 40... Rd8 {[%clk 0:00:02.5]} 41. Bc4
{[%clk 0:00:14.6]} 41... Qb6+ {[%clk 0:00:01.8]} 42. Kg2 {[%clk 0:00:14]} 1-0

[Event "*** Titled Tuesday Blitz"]
[Site "Chess.com"]
[Date "2020.12.01"]
[Round "6"]
[White "Rud_Makarian"]
[Black "Shield12"]
[Result "1/2-1/2"]
[WhiteElo "2733"]
[BlackElo "2929"]
[TimeControl "180+1"]
[EndTime "11:05:32 PST"]
[Termination "Game drawn by repetition"]

1. d4 {[%clk 0:03:00]} 1... Nf6 {[%clk 0:03:00.3]} 2. c4 {[%clk 0:03:00.3]} 2...
e6 {[%clk 0:03:00.9]} 3. Nf3 {[%clk 0:03:00.5]} 3... Bb4+ {[%clk 0:03:00.9]} 4.
Bd2 {[%clk 0:03:00.3]} 4... a5 {[%clk 0:03:01]} 5. g3 {[%clk 0:03:00.1]} 5... d6
{[%clk 0:03:01.2]} 6. Bg2 {[%clk 0:03:00.5]} 6... Nbd7 {[%clk 0:03:01.9]} 7. O-O
{[%clk 0:03:01]} 7... e5 {[%clk 0:03:02.6]} 8. Nc3 {[%clk 0:02:59.7]} 8... O-O
{[%clk 0:03:02.4]} 9. b3 {[%clk 0:02:59.2]} 9... Re8 {[%clk 0:02:54.6]} 10. a3
{[%clk 0:02:58.5]} 10... Bxc3 {[%clk 0:02:54.3]} 11. Bxc3 {[%clk 0:02:59.4]}
11... e4 {[%clk 0:02:54.2]} 12. Ne1 {[%clk 0:02:55.2]} 12... d5 {[%clk
0:02:52.7]} 13. Nc2 {[%clk 0:02:48]} 13... c6 {[%clk 0:02:52.8]} 14. Ne3 {[%clk
0:02:42.9]} 14... b6 {[%clk 0:02:47.8]} 15. Qd2 {[%clk 0:02:35.7]} 15... Nf8
{[%clk 0:02:44.5]} 16. c5 {[%clk 0:02:14.3]} 16... b5 {[%clk 0:02:43]} 17. f4
{[%clk 0:02:02.1]} 17... Ng4 {[%clk 0:02:20.9]} 18. f5 {[%clk 0:01:56.5]} 18...
Qg5 {[%clk 0:02:16.6]} 19. Nxg4 {[%clk 0:01:53]} 19... Qxg4 {[%clk 0:02:11.9]}
20. Qf4 {[%clk 0:01:45.7]} 20... Qxe2 {[%clk 0:02:06.4]} 21. Rae1 {[%clk
0:01:30.8]} 21... Qh5 {[%clk 0:02:00.8]} 22. g4 {[%clk 0:01:29]} 22... Qh4
{[%clk 0:02:00.6]} 23. Re3 {[%clk 0:01:27.1]} 23... h6 {[%clk 0:01:58.6]} 24.
Bd2 {[%clk 0:01:19.9]} 24... Nh7 {[%clk 0:01:56.9]} 25. Rh3 {[%clk 0:00:50.3]}
25... Qg5 {[%clk 0:01:55.3]} 26. Qf2 {[%clk 0:00:32.3]} 26... Qxg4 {[%clk
0:01:36.6]} 27. Rg3 {[%clk 0:00:30.8]} 27... Qh5 {[%clk 0:01:36.4]} 28. Qf4
{[%clk 0:00:30.5]} 28... Kh8 {[%clk 0:01:25.8]} 29. Be3 {[%clk 0:00:26.7]} 29...
b4 {[%clk 0:01:22.7]} 30. a4 {[%clk 0:00:20.9]} 30... Ba6 {[%clk 0:01:21.3]} 31.
Rf2 {[%clk 0:00:21.4]} 31... Qd1+ {[%clk 0:01:19.3]} 32. Bf1 {[%clk 0:00:21.9]}
32... Ng5 {[%clk 0:01:10.3]} 33. h4 {[%clk 0:00:18.9]} 33... Nf3+ {[%clk
0:01:05.3]} 34. Kg2 {[%clk 0:00:19.3]} 34... Rg8 {[%clk 0:00:32.2]} 35. f6
{[%clk 0:00:13.4]} 35... g5 {[%clk 0:00:28.3]} 36. hxg5 {[%clk 0:00:13.8]} 36...
Rxg5 {[%clk 0:00:21.1]} 37. Rxg5 {[%clk 0:00:13.1]} 37... Nxg5 {[%clk
0:00:20.6]} 38. Bxa6 {[%clk 0:00:11.2]} 38... Rxa6 {[%clk 0:00:19.2]} 39. Qb8+
{[%clk 0:00:11.1]} 39... Kh7 {[%clk 0:00:19.2]} 40. Qf8 {[%clk 0:00:10]} 40...
Qg4+ {[%clk 0:00:17.1]} 41. Kf1 {[%clk 0:00:10.1]} 41... Qd1+ {[%clk 0:00:13.3]}
42. Kg2 {[%clk 0:00:10.6]} 42... Qg4+ {[%clk 0:00:11.9]} 43. Kf1 {[%clk
0:00:11.1]} 43... Qd1+ {[%clk 0:00:06.4]} 44. Kg2 {[%clk 0:00:11.2]} 1/2-1/2

[Event "*** Titled Tuesday Blitz"]
[Site "Chess.com"]
[Date "2020.12.01"]
[Round "6"]
[White "Brave_spirit12"]
[Black "Supernotar"]
[Result "0-1"]
[WhiteElo "2486"]
[BlackElo "2785"]
[TimeControl "180+1"]
[EndTime "11:05:33 PST"]
[Termination "Supernotar won by resignation"]

1. e4 {[%clk 0:03:00.9]} 1... c6 {[%clk 0:03:00]} 2. Nc3 {[%clk 0:03:00]} 2...
d5 {[%clk 0:03:00.9]} 3. Nf3 {[%clk 0:03:00.9]} 3... Bg4 {[%clk 0:03:00.8]} 4.
h3 {[%clk 0:02:58]} 4... Bxf3 {[%clk 0:03:00.8]} 5. Qxf3 {[%clk 0:02:58.9]} 5...
e6 {[%clk 0:03:01.6]} 6. d3 {[%clk 0:02:57.6]} 6... Nf6 {[%clk 0:03:01.8]} 7.
Bd2 {[%clk 0:02:57.1]} 7... Qb6 {[%clk 0:03:02.1]} 8. O-O-O {[%clk 0:02:56.5]}
8... d4 {[%clk 0:03:02.5]} 9. Ne2 {[%clk 0:02:53.7]} 9... c5 {[%clk 0:03:02.9]}
10. g4 {[%clk 0:02:51.1]} 10... Nc6 {[%clk 0:03:03.1]} 11. g5 {[%clk 0:02:46.1]}
11... Nd7 {[%clk 0:03:03.1]} 12. Qg3 {[%clk 0:02:44.5]} 12... c4 {[%clk
0:03:02.7]} 13. dxc4 {[%clk 0:02:41.8]} 13... Nc5 {[%clk 0:03:03]} 14. Bg2
{[%clk 0:02:34.2]} 14... O-O-O {[%clk 0:02:56.1]} 15. e5 {[%clk 0:02:30.9]}
15... d3 {[%clk 0:02:53.7]} 16. Nc3 {[%clk 0:02:07.5]} 16... dxc2 {[%clk
0:02:42.6]} 17. Kxc2 {[%clk 0:02:07.5]} 17... Nb4+ {[%clk 0:02:33.4]} 18. Kb1
{[%clk 0:02:05.7]} 18... Nbd3 {[%clk 0:02:30.2]} 19. Bc1 {[%clk 0:01:46.7]}
19... Be7 {[%clk 0:02:21.5]} 20. f4 {[%clk 0:01:40.2]} 20... Rd4 {[%clk
0:02:10.5]} 21. Qe3 {[%clk 0:01:19.5]} 21... Rhd8 {[%clk 0:02:08.9]} 22. Rd2
{[%clk 0:00:31.5]} 22... Rxc4 {[%clk 0:02:00.4]} 23. Ne4 {[%clk 0:00:15.3]}
23... Nxe4 {[%clk 0:01:29.7]} 24. Rxd3 {[%clk 0:00:14.7]} 24... Bc5 {[%clk
0:01:02.9]} 25. Rxd8+ {[%clk 0:00:12.9]} 25... Qxd8 {[%clk 0:01:02]} 26. Qb3
{[%clk 0:00:10.5]} 26... Rxc1+ {[%clk 0:00:34.1]} 27. Kxc1 {[%clk 0:00:09.3]}
27... Qd2+ {[%clk 0:00:33.8]} 28. Kb1 {[%clk 0:00:09.2]} 28... Qxg2 {[%clk
0:00:34.2]} 29. Qd1 {[%clk 0:00:04.5]} 29... b6 {[%clk 0:00:16.4]} 30. Re1
{[%clk 0:00:03.9]} 30... Nf2 {[%clk 0:00:06.3]} 31. Qd2 {[%clk 0:00:02.9]} 31...
Qf3 {[%clk 0:00:05.5]} 32. Rc1 {[%clk 0:00:02.8]} 32... Nd3 {[%clk 0:00:04.4]}
33. Rc3 {[%clk 0:00:02.3]} 33... Qf1+ {[%clk 0:00:04]} 34. Kc2 {[%clk
0:00:02.8]} 34... Nb4+ {[%clk 0:00:03.7]} 35. Kb3 {[%clk 0:00:03.5]} 35... Qb5
{[%clk 0:00:04.2]} 36. Ka3 {[%clk 0:00:02.8]} 36... Nd5+ {[%clk 0:00:03.7]} 37.
Rxc5+ {[%clk 0:00:03.3]} 37... Qxc5+ {[%clk 0:00:03.8]} 38. Kb3 {[%clk
0:00:03.7]} 38... Qb5+ {[%clk 0:00:04.2]} 39. Ka3 {[%clk 0:00:03.9]} 39... Qa5+
{[%clk 0:00:04.6]} 40. Qxa5 {[%clk 0:00:04.2]} 40... bxa5 {[%clk 0:00:05.5]} 41.
Ka4 {[%clk 0:00:05.1]} 41... Nxf4 {[%clk 0:00:05.9]} 42. g6 {[%clk 0:00:05.3]}
42... hxg6 {[%clk 0:00:05.9]} 0-1

[Event "*** Titled Tuesday Blitz"]
[Site "Chess.com"]
[Date "2020.12.01"]
[Round "6"]
[White "Alomaterapia"]
[Black "Mambastik-Fantastic"]
[Result "1-0"]
[WhiteElo "2441"]
[BlackElo "2311"]
[TimeControl "180+1"]
[EndTime "11:05:34 PST"]
[Termination "Alomaterapia won on time"]

1. e4 {[%clk 0:03:00.9]} 1... c5 {[%clk 0:02:59.6]} 2. c3 {[%clk 0:03:00.2]}
2... Nf6 {[%clk 0:02:58.7]} 3. e5 {[%clk 0:03:00.1]} 3... Nd5 {[%clk 0:02:58.3]}
4. Nf3 {[%clk 0:02:58.7]} 4... Nc6 {[%clk 0:02:57.5]} 5. d4 {[%clk 0:02:59]}
5... cxd4 {[%clk 0:02:57.4]} 6. cxd4 {[%clk 0:02:59.3]} 6... d6 {[%clk
0:02:57.8]} 7. Bc4 {[%clk 0:02:59.5]} 7... Nb6 {[%clk 0:02:57.3]} 8. Bb5 {[%clk
0:02:58.7]} 8... dxe5 {[%clk 0:02:56.8]} 9. Nxe5 {[%clk 0:02:59.4]} 9... Bd7
{[%clk 0:02:56]} 10. Bxc6 {[%clk 0:02:53.5]} 10... bxc6 {[%clk 0:02:55.5]} 11.
O-O {[%clk 0:02:48.4]} 11... Nd5 {[%clk 0:02:34.5]} 12. Qf3 {[%clk 0:02:34.2]}
12... Nf6 {[%clk 0:02:25.9]} 13. Nxc6 {[%clk 0:02:27.8]} 13... Qc8 {[%clk
0:02:13.5]} 14. Ne5 {[%clk 0:02:24.3]} 14... Be6 {[%clk 0:02:09.5]} 15. Nc3
{[%clk 0:02:21.8]} 15... g6 {[%clk 0:01:59.4]} 16. d5 {[%clk 0:02:14.8]} 16...
Bf5 {[%clk 0:01:56.4]} 17. Re1 {[%clk 0:02:04.9]} 17... Bg7 {[%clk 0:01:45.6]}
18. Nc6 {[%clk 0:02:04.5]} 18... e6 {[%clk 0:01:38.7]} 19. Bg5 {[%clk
0:01:58.4]} 19... h5 {[%clk 0:01:28.9]} 20. dxe6 {[%clk 0:01:44.2]} 20... fxe6
{[%clk 0:01:25.4]} 21. Bxf6 {[%clk 0:01:21.6]} 21... Bxf6 {[%clk 0:01:23.9]} 22.
Nd5 {[%clk 0:01:21.8]} 22... Kf7 {[%clk 0:01:19.2]} 23. Nxf6 {[%clk 0:01:17.5]}
23... Kxf6 {[%clk 0:01:19]} 24. Rad1 {[%clk 0:01:08.1]} 24... Kg7 {[%clk
0:01:18.1]} 25. Ne7 {[%clk 0:01:03.1]} 25... Qc7 {[%clk 0:00:59.7]} 26. Nxf5+
{[%clk 0:01:02.7]} 26... exf5 {[%clk 0:00:58.5]} 27. Rc1 {[%clk 0:00:51.7]}
27... Qf7 {[%clk 0:00:48.3]} 28. Qc3+ {[%clk 0:00:41.3]} 28... Kh6 {[%clk
0:00:47.2]} 29. Qd2+ {[%clk 0:00:28.2]} 29... f4 {[%clk 0:00:45.2]} 30. Re4
{[%clk 0:00:26.7]} 30... Rhf8 {[%clk 0:00:42.7]} 31. b3 {[%clk 0:00:24.1]} 31...
Rad8 {[%clk 0:00:40.3]} 32. Qb4 {[%clk 0:00:22.5]} 32... Qd5 {[%clk 0:00:34.6]}
33. h4 {[%clk 0:00:20.1]} 33... f3 {[%clk 0:00:31.3]} 34. g3 {[%clk 0:00:20.5]}
34... Qd3 {[%clk 0:00:21.9]} 35. Ree1 {[%clk 0:00:16.9]} 35... Rf6 {[%clk
0:00:18.1]} 36. Qa5 {[%clk 0:00:14.3]} 36... Rfd6 {[%clk 0:00:17.7]} 37. Qg5+
{[%clk 0:00:13.8]} 37... Kg7 {[%clk 0:00:14.2]} 38. Re7+ {[%clk 0:00:14.1]}
38... Kf8 {[%clk 0:00:14]} 39. Rh7 {[%clk 0:00:12.2]} 39... Qf5 {[%clk
0:00:06.4]} 40. Qh6+ {[%clk 0:00:08.7]} 40... Ke8 {[%clk 0:00:06.5]} 41. Qg7
{[%clk 0:00:06.5]} 41... Rd1+ {[%clk 0:00:05.8]} 42. Kh2 {[%clk 0:00:06]} 1-0

[Event "*** Titled Tuesday Blitz"]
[Site "Chess.com"]
[Date "2020.12.01"]
[Round "6"]
[White "profofchess"]
[Black "ObidObad"]
[Result "1-0"]
[WhiteElo "2428"]
[BlackElo "2296"]
[TimeControl "180+1"]
[EndTime "11:05:36 PST"]
[Termination "profofchess won on time"]

1. e4 {[%clk 0:03:00.9]} 1... e5 {[%clk 0:02:46.6]} 2. Nf3 {[%clk 0:02:59.9]}
2... Nc6 {[%clk 0:02:45.7]} 3. Nc3 {[%clk 0:03:00.4]} 3... Nge7 {[%clk
0:02:42.8]} 4. d4 {[%clk 0:02:48.4]} 4... d6 {[%clk 0:02:41.8]} 5. Bc4 {[%clk
0:02:11.4]} 5... exd4 {[%clk 0:02:22.1]} 6. Nxd4 {[%clk 0:02:09.7]} 6... Nxd4
{[%clk 0:02:22.4]} 7. Qxd4 {[%clk 0:02:10.2]} 7... Nc6 {[%clk 0:02:22.8]} 8. Qe3
{[%clk 0:01:48.3]} 8... Ne5 {[%clk 0:02:22.5]} 9. Bb3 {[%clk 0:01:46.2]} 9...
Be7 {[%clk 0:02:22.4]} 10. Bd2 {[%clk 0:01:18.5]} 10... O-O {[%clk 0:02:19.3]}
11. O-O-O {[%clk 0:01:11.2]} 11... a5 {[%clk 0:02:18.3]} 12. f4 {[%clk
0:01:03.8]} 12... Nd7 {[%clk 0:02:02.9]} 13. a3 {[%clk 0:00:42.2]} 13... Nc5
{[%clk 0:02:00.3]} 14. Ba2 {[%clk 0:00:42.1]} 14... b5 {[%clk 0:01:59.7]} 15.
Nd5 {[%clk 0:00:38.5]} 15... b4 {[%clk 0:01:56.8]} 16. Rhf1 {[%clk 0:00:17.1]}
16... bxa3 {[%clk 0:01:55.2]} 17. Qxa3 {[%clk 0:00:17.1]} 17... Nxe4 {[%clk
0:01:51.1]} 18. Nxe7+ {[%clk 0:00:17]} 18... Qxe7 {[%clk 0:01:50.8]} 19. Rde1
{[%clk 0:00:17.7]} 19... Bb7 {[%clk 0:01:38.5]} 20. f5 {[%clk 0:00:16.4]} 20...
Qf6 {[%clk 0:01:33.7]} 21. Qd3 {[%clk 0:00:11.8]} 21... Nc5 {[%clk 0:01:30]} 22.
Qg3 {[%clk 0:00:10.4]} 22... Ne4 {[%clk 0:01:25.4]} 23. Qf4 {[%clk 0:00:09]}
23... Nxd2 {[%clk 0:01:25.3]} 24. Qxd2 {[%clk 0:00:08.7]} 24... Rab8 {[%clk
0:01:23.8]} 25. g4 {[%clk 0:00:08.7]} 25... Bg2 {[%clk 0:01:17.9]} 26. Qxg2
{[%clk 0:00:06.1]} 26... Qxb2+ {[%clk 0:01:17.4]} 27. Kd1 {[%clk 0:00:06.3]}
27... Qxa2 {[%clk 0:01:14.3]} 28. f6 {[%clk 0:00:06.5]} 28... g6 {[%clk
0:01:03.5]} 29. Qh3 {[%clk 0:00:06.2]} 29... Qa1+ {[%clk 0:01:00.3]} 30. Kd2
{[%clk 0:00:06.3]} 30... Qd4+ {[%clk 0:01:00.8]} 31. Kc1 {[%clk 0:00:06.7]}
31... Qb2+ {[%clk 0:00:32.8]} 32. Kd2 {[%clk 0:00:07]} 32... Rb4 {[%clk
0:00:31.7]} 33. Qh6 {[%clk 0:00:06.3]} 33... Rd4+ {[%clk 0:00:30.1]} 34. Ke3
{[%clk 0:00:05.5]} 34... Qc3+ {[%clk 0:00:30.2]} 35. Kf2 {[%clk 0:00:05.7]}
35... Rd2+ {[%clk 0:00:25]} 36. Kg1 {[%clk 0:00:03.8]} 36... Qd4+ {[%clk
0:00:22.6]} 37. Re3 {[%clk 0:00:03.5]} 37... Qxg4+ {[%clk 0:00:20.9]} 38. Rg3
{[%clk 0:00:03.7]} 38... Qd4+ {[%clk 0:00:19.4]} 39. Re3 {[%clk 0:00:04]} 39...
Qg4+ {[%clk 0:00:11.8]} 40. Rg3 {[%clk 0:00:04.2]} 40... Qd4+ {[%clk 0:00:05.5]}
41. Re3 {[%clk 0:00:04.4]} 41... Rg2+ {[%clk 0:00:02.8]} 42. Kxg2 {[%clk
0:00:04.2]} 42... Qd2+ {[%clk 0:00:03.4]} 43. Kg1 {[%clk 0:00:04.2]} 43... Qxe3+
{[%clk 0:00:02.6]} 44. Qxe3 {[%clk 0:00:03.6]} 1-0

[Event "*** Titled Tuesday Blitz"]
[Site "Chess.com"]
[Date "2020.12.01"]
[Round "6"]
[White "Grammnik"]
[Black "Kovalchuk94"]
[Result "0-1"]
[WhiteElo "2346"]
[BlackElo "2562"]
[TimeControl "180+1"]
[EndTime "11:05:37 PST"]
[Termination "Kovalchuk94 won on time"]

1. d4 {[%clk 0:03:00.9]} 1... Nf6 {[%clk 0:02:54.6]} 2. Nf3 {[%clk 0:02:45.1]}
2... g6 {[%clk 0:02:48.2]} 3. c4 {[%clk 0:02:44.8]} 3... Bg7 {[%clk 0:02:47]} 4.
Nc3 {[%clk 0:02:44.9]} 4... d5 {[%clk 0:02:47.1]} 5. cxd5 {[%clk 0:02:45]} 5...
Nxd5 {[%clk 0:02:46.9]} 6. e4 {[%clk 0:02:45.4]} 6... Nxc3 {[%clk 0:02:47.1]} 7.
bxc3 {[%clk 0:02:45.9]} 7... c5 {[%clk 0:02:47.6]} 8. Rb1 {[%clk 0:02:44.9]}
8... O-O {[%clk 0:02:25]} 9. Be2 {[%clk 0:02:42.9]} 9... b6 {[%clk 0:02:23.2]}
10. O-O {[%clk 0:02:41.7]} 10... Bb7 {[%clk 0:02:19.8]} 11. Qd3 {[%clk
0:02:41.3]} 11... Nd7 {[%clk 0:02:07.4]} 12. e5 {[%clk 0:02:24.7]} 12... cxd4
{[%clk 0:01:39.8]} 13. cxd4 {[%clk 0:02:22.7]} 13... Bd5 {[%clk 0:01:36.9]} 14.
Qa6 {[%clk 0:02:09.6]} 14... Qc8 {[%clk 0:01:31.6]} 15. a4 {[%clk 0:01:59.1]}
15... Be4 {[%clk 0:01:20.6]} 16. Rb4 {[%clk 0:01:49]} 16... Bb7 {[%clk
0:01:10.7]} 17. Qd3 {[%clk 0:01:44.8]} 17... Rd8 {[%clk 0:01:03.3]} 18. Bf4
{[%clk 0:01:32.3]} 18... Nc5 {[%clk 0:01:00.5]} 19. Qc2 {[%clk 0:01:20.8]} 19...
Ne6 {[%clk 0:01:00.3]} 20. Rc4 {[%clk 0:01:18.1]} 20... Qd7 {[%clk 0:00:59.5]}
21. Be3 {[%clk 0:01:15.9]} 21... Bd5 {[%clk 0:00:56.9]} 22. Rb4 {[%clk
0:01:11.8]} 22... Rac8 {[%clk 0:00:55.3]} 23. Qb2 {[%clk 0:01:05.4]} 23... f6
{[%clk 0:00:45.7]} 24. Ba6 {[%clk 0:00:55]} 24... Rc7 {[%clk 0:00:41.3]} 25. a5
{[%clk 0:00:40.8]} 25... bxa5 {[%clk 0:00:40.4]} 26. Rb8 {[%clk 0:00:40.3]}
26... a4 {[%clk 0:00:18.7]} 27. Rxd8+ {[%clk 0:00:27.5]} 27... Qxd8 {[%clk
0:00:16.2]} 28. Rd1 {[%clk 0:00:24.6]} 28... Bb3 {[%clk 0:00:14.6]} 29. Rc1
{[%clk 0:00:21.2]} 29... h5 {[%clk 0:00:12.3]} 30. Nd2 {[%clk 0:00:17.2]} 30...
Rxc1+ {[%clk 0:00:11.6]} 31. Qxc1 {[%clk 0:00:16.9]} 31... fxe5 {[%clk
0:00:11.2]} 32. Nxb3 {[%clk 0:00:15.2]} 32... axb3 {[%clk 0:00:11.5]} 33. Bc4
{[%clk 0:00:14.9]} 33... Qd6 {[%clk 0:00:11.5]} 34. Bxb3 {[%clk 0:00:12.3]}
34... Kh7 {[%clk 0:00:11.7]} 35. dxe5 {[%clk 0:00:11.5]} 35... Qxe5 {[%clk
0:00:09.8]} 36. g3 {[%clk 0:00:07.1]} 36... Nd4 {[%clk 0:00:10.1]} 37. Bxd4
{[%clk 0:00:06.8]} 37... Qxd4 {[%clk 0:00:10.3]} 38. Qc4 {[%clk 0:00:06.2]}
38... Qa1+ {[%clk 0:00:07.8]} 39. Kg2 {[%clk 0:00:05.2]} 39... Qe5 {[%clk
0:00:07.2]} 40. Bc2 {[%clk 0:00:02.6]} 40... a5 {[%clk 0:00:05.9]} 41. h4 {[%clk
0:00:01.9]} 41... Kh6 {[%clk 0:00:04.2]} 42. Qd3 {[%clk 0:00:01.4]} 42... Qf6
{[%clk 0:00:04.1]} 0-1

[Event "*** Titled Tuesday Blitz"]
[Site "Chess.com"]
[Date "2020.12.01"]
[Round "6"]
[White "marabu44"]
[Black "anpospan"]
[Result "0-1"]
[WhiteElo "2277"]
[BlackElo "2406"]
[TimeControl "180+1"]
[EndTime "11:05:39 PST"]
[Termination "anpospan won by resignation"]

1. Nf3 {[%clk 0:02:58]} 1... c5 {[%clk 0:02:58.9]} 2. b3 {[%clk 0:02:56.9]} 2...
e6 {[%clk 0:02:58.2]} 3. Bb2 {[%clk 0:02:55]} 3... Nf6 {[%clk 0:02:58.3]} 4. e3
{[%clk 0:02:53.8]} 4... b6 {[%clk 0:02:58.3]} 5. d4 {[%clk 0:02:52]} 5... Be7
{[%clk 0:02:53.2]} 6. Be2 {[%clk 0:02:50.3]} 6... d6 {[%clk 0:02:53]} 7. O-O
{[%clk 0:02:49.9]} 7... Bb7 {[%clk 0:02:53]} 8. c4 {[%clk 0:02:50.1]} 8... Nbd7
{[%clk 0:02:52.6]} 9. Nc3 {[%clk 0:02:50.2]} 9... a6 {[%clk 0:02:52.3]} 10. Qc2
{[%clk 0:02:48.2]} 10... O-O {[%clk 0:02:51.6]} 11. Rad1 {[%clk 0:02:47.8]}
11... Qc7 {[%clk 0:02:51.6]} 12. d5 {[%clk 0:02:45.4]} 12... exd5 {[%clk
0:02:49.6]} 13. Nxd5 {[%clk 0:02:44.4]} 13... Nxd5 {[%clk 0:02:38.1]} 14. cxd5
{[%clk 0:02:43.8]} 14... Bf6 {[%clk 0:02:37.7]} 15. Bc1 {[%clk 0:02:21.6]} 15...
b5 {[%clk 0:02:33.6]} 16. e4 {[%clk 0:02:19.6]} 16... Ne5 {[%clk 0:02:24.3]} 17.
Ng5 {[%clk 0:02:09.1]} 17... h6 {[%clk 0:02:14.2]} 18. Nh3 {[%clk 0:02:07.6]}
18... Bc8 {[%clk 0:01:58.5]} 19. Nf4 {[%clk 0:02:06.6]} 19... g6 {[%clk
0:01:54.5]} 20. Nd3 {[%clk 0:02:02.4]} 20... Nxd3 {[%clk 0:01:51]} 21. Qxd3
{[%clk 0:01:59.3]} 21... Bg7 {[%clk 0:01:47.8]} 22. Bf4 {[%clk 0:01:54.2]} 22...
g5 {[%clk 0:01:44.6]} 23. Bg3 {[%clk 0:01:53.4]} 23... Qe7 {[%clk 0:01:42.9]}
24. f3 {[%clk 0:01:44.4]} 24... Bd7 {[%clk 0:01:42]} 25. Kh1 {[%clk 0:01:36.2]}
25... Rae8 {[%clk 0:01:41.6]} 26. Qc2 {[%clk 0:01:32.7]} 26... f5 {[%clk
0:01:40.8]} 27. Bd3 {[%clk 0:01:32.4]} 27... f4 {[%clk 0:01:38.6]} 28. Bf2
{[%clk 0:01:32]} 28... Be5 {[%clk 0:01:38.4]} 29. a4 {[%clk 0:01:26.4]} 29... g4
{[%clk 0:01:29.7]} 30. fxg4 {[%clk 0:01:17.2]} 30... Bxg4 {[%clk 0:01:28.7]} 31.
Be2 {[%clk 0:01:16.3]} 31... Bd7 {[%clk 0:01:21.4]} 32. axb5 {[%clk 0:01:13.3]}
32... axb5 {[%clk 0:01:19.8]} 33. Bf3 {[%clk 0:01:13]} 33... Ra8 {[%clk
0:01:16.5]} 34. Qe2 {[%clk 0:01:03.2]} 34... Qg5 {[%clk 0:01:13.6]} 35. Qe1
{[%clk 0:00:55.1]} 35... Ra2 {[%clk 0:01:08.8]} 36. Rd2 {[%clk 0:00:52.9]} 36...
Rfa8 {[%clk 0:01:06.8]} 37. Bh4 {[%clk 0:00:47.5]} 37... Qg7 {[%clk 0:00:59.1]}
38. Rxa2 {[%clk 0:00:45.6]} 38... Rxa2 {[%clk 0:00:58]} 39. Qd1 {[%clk
0:00:38.8]} 39... Qf8 {[%clk 0:00:33.2]} 40. Bg4 {[%clk 0:00:21.4]} 40... Ra1
{[%clk 0:00:31.4]} 41. Bxd7 {[%clk 0:00:17]} 41... Rxd1 {[%clk 0:00:30.7]} 42.
Be6+ {[%clk 0:00:17.7]} 42... Kg7 {[%clk 0:00:28.3]} 43. Rxd1 {[%clk 0:00:18.2]}
43... Qa8 {[%clk 0:00:23.5]} 44. Bg4 {[%clk 0:00:14.7]} 44... Qa2 {[%clk
0:00:21.2]} 45. Bf3 {[%clk 0:00:13.5]} 45... Qxb3 {[%clk 0:00:19.5]} 46. Be1
{[%clk 0:00:12.8]} 46... c4 {[%clk 0:00:18.3]} 47. Rc1 {[%clk 0:00:08.1]} 47...
c3 {[%clk 0:00:17]} 48. Be2 {[%clk 0:00:07.9]} 48... b4 {[%clk 0:00:16.3]} 49.
Bd3 {[%clk 0:00:07.3]} 49... Qb2 {[%clk 0:00:16.1]} 50. Rc2 {[%clk 0:00:06.9]}
50... Qb1 {[%clk 0:00:15.1]} 51. Re2 {[%clk 0:00:04.7]} 51... Qxd3 {[%clk
0:00:14.8]} 0-1